[Event "Internationales Werder Bremen IM-Turnier"]
[Site "SV Werder Bremen, Clubräume in der Hemelinger Straße 17, Germany"]
[Date "2018.06.18"]
[Round "3.1"]
[White "Kardoeus, David"]
[Black "Grigorian, Spartak"]
[Result "0-1"]
[TimeControl "90 Minuten/40 Züge + 30 Minuten/Rest + 30 Sekunden ab dem ersten Zug"]
[WhiteFideId "12912050"]
[BlackFideId "24661490"]
[WhiteElo "2226"]
[BlackElo "2359"]

1. e4 {[%clk 01:30:57]} {[%emt 00:00:01]} c5 {[%clk 01:22:34]} {[%emt
00:08:27]} 2. Nf3 {[%clk 01:31:18]} {[%emt 00:00:08]} d6 {[%clk 01:23:00]}
{[%emt 00:00:05]} 3. d4 {[%clk 01:31:39]} {[%emt 00:00:09]} cxd4 {[%clk
01:23:27]} {[%emt 00:00:03]} 4. Nxd4 {[%clk 01:32:05]} {[%emt 00:00:04]} Nf6
{[%clk 01:23:56]} {[%emt 00:00:01]} 5. Nc3 {[%clk 01:32:28]} {[%emt 00:00:07]}
a6 {[%clk 01:24:24]} {[%emt 00:00:02]} 6. Bg5 {[%clk 01:32:52]} {[%emt
00:00:05]} e6 {[%clk 01:24:36]} {[%emt 00:00:19]} 7. f4 {[%clk 01:33:10]}
{[%emt 00:00:11]} h6 {[%clk 01:25:04]} {[%emt 00:00:03]} 8. Bh4 {[%clk
01:33:33]} {[%emt 00:00:07]} Qb6 {[%clk 01:25:32]} {[%emt 00:00:03]} 9. Qd3
{[%clk 01:30:59]} {[%emt 00:03:04]} Qxb2 {[%clk 01:25:48]} {[%emt 00:00:14]} 10.
Rb1 {[%clk 01:30:51]} {[%emt 00:00:37]} Qa3 {[%clk 01:26:16]} {[%emt 00:00:02]}
11. Bxf6 {[%clk 01:31:02]} {[%emt 00:00:19]} gxf6 {[%clk 01:26:45]} {[%emt
00:00:02]} 12. Nb3 {[%clk 01:30:09]} {[%emt 00:01:22]} Nd7 {[%clk 01:23:06]}
{[%emt 00:04:09]} 13. Qd4 {[%clk 01:22:28]} {[%emt 00:08:10]} Be7 {[%clk
01:17:42]} {[%emt 00:05:55]} 14. Be2 {[%clk 01:19:04]} {[%emt 00:03:54]} h5
{[%clk 01:01:35]} {[%emt 00:16:38]} 15. O-O {[%clk 01:12:59]} {[%emt 00:06:34]}
b5 {[%clk 00:59:46]} {[%emt 00:02:20]} 16. Kh1 {[%clk 00:59:54]} {[%emt
00:13:34]} Bb7 {[%clk 00:54:14]} {[%emt 00:06:03]} 17. Rf3 {[%clk 00:52:41]}
{[%emt 00:07:42]} h4 {[%clk 00:46:03]} {[%emt 00:08:42]} 18. Rh3 {[%clk
00:47:37]} {[%emt 00:05:33]} Bc6 {[%clk 00:27:43]} {[%emt 00:18:51]} 19. Re1
{[%clk 00:33:44]} {[%emt 00:14:23]} Rc8 {[%clk 00:09:05]} {[%emt 00:19:08]} 20.
Bg4 {[%clk 00:28:50]} {[%emt 00:05:24]} Rc7 {[%clk 00:07:20]} {[%emt 00:02:16]}
21. Nd5 {[%clk 00:24:32]} {[%emt 00:04:47]} Bxd5 {[%clk 00:07:20]} {[%emt
00:00:30]} 22. exd5 {[%clk 00:24:20]} {[%emt 00:00:41]} e5 {[%clk 00:07:47]}
{[%emt 00:00:03]} 23. Bxd7+ {[%clk 00:15:48]} {[%emt 00:09:02]} Kxd7 {[%clk
00:08:10]} {[%emt 00:00:07]} 24. fxe5 {[%clk 00:16:12]} {[%emt 00:00:06]} fxe5
{[%clk 00:08:38]} {[%emt 00:00:03]} 25. Qg4+ {[%clk 00:16:36]} {[%emt
00:00:06]} Ke8 {[%clk 00:07:40]} {[%emt 00:01:28]} 26. Rf3 {[%clk 00:09:47]}
{[%emt 00:07:19]} Qxa2 {[%clk 00:04:03]} {[%emt 00:04:07]} 27. h3 {[%clk
00:05:35]} {[%emt 00:04:41]} Rc4 {[%clk 00:02:16]} {[%emt 00:02:17]} 28. Qg7
{[%clk 00:05:18]} {[%emt 00:00:47]} Rf8 {[%clk 00:02:45]} {[%emt 00:00:02]} 29.
Ra1 {[%clk 00:05:09]} {[%emt 00:00:39]} Qxc2 {[%clk 00:03:14]} {[%emt
00:00:02]} 30. Rxa6 {[%clk 00:05:18]} {[%emt 00:00:21]} Qd1 {[%clk 00:01:01]}
{[%emt 00:02:43]} 31. Kh2 {[%clk 00:05:46]} Qxd5 {[%clk 00:01:30]} 32. Ra7
{[%clk 00:06:03]} {[%emt 00:00:15]} e4 {[%clk 00:01:38]} {[%emt 00:00:22]} 33.
Rf2 {[%clk 00:04:35]} {[%emt 00:01:58]} e3 {[%clk 00:01:05]} {[%emt 00:01:03]}
34. Re2 {[%clk 00:03:48]} {[%emt 00:01:17]} Re4 {[%clk 00:00:40]} {[%emt
00:00:55]} 35. Na5 {[%clk 00:04:05]} {[%emt 00:00:13]} Qe5 {[%clk 00:00:43]}
{[%emt 00:00:27]} 36. Qxe5 {[%clk 00:04:30]} {[%emt 00:00:05]} Rxe5 {[%clk
00:00:44]} {[%emt 00:00:29]} 37. Nc6 {[%clk 00:04:58]} {[%emt 00:00:01]} Bf6
{[%clk 00:00:31]} {[%emt 00:00:43]} 38. g3 {[%clk 00:04:39]} {[%emt 00:00:49]}
hxg3 {[%clk 00:00:53]} {[%emt 00:00:08]} 39. Kg2 {[%clk 00:04:53]} {[%emt
00:00:16]} Re6 {[%clk 00:00:34]} {[%emt 00:00:50]} 40. Kf3 {[%clk 00:02:05]}
{[%emt 00:03:18]} Rh8 {[%clk 00:00:36]} {[%emt 00:00:28]} 41. Rc2 {[%clk
00:01:43]} {[%emt 00:00:52]} Kf8 {[%clk 00:29:42]} {[%emt 00:01:23]} 0-1

[Event "Internationales Werder Bremen IM-Turnier"]
[Site "SV Werder Bremen, Clubräume in der Hemelinger Straße 17, Germany"]
[Date "2018.06.18"]
[Round "3.3"]
[White "Reuker, Jari"]
[Black "Osmanodja, Filiz"]
[Result "0-1"]
[TimeControl "90 Minuten/40 Züge + 30 Minuten/Rest + 30 Sekunden ab dem ersten Zug"]
[BlackTitle "WIM"]
[WhiteFideId "12909300"]
[BlackFideId "24633569"]
[WhiteElo "2389"]
[BlackElo "2352"]

1. d4 {[%clk 01:30:55]} {[%emt 00:00:04]} Nf6 {[%clk 01:30:58]} {[%emt
00:00:03]} 2. c4 {[%clk 01:31:17]} {[%emt 00:00:08]} e6 {[%clk 01:31:24]}
{[%emt 00:00:06]} 3. Nc3 {[%clk 01:31:39]} {[%emt 00:00:06]} Bb4 {[%clk
01:31:52]} {[%emt 00:00:03]} 4. Qc2 {[%clk 01:32:00]} {[%emt 00:00:09]} O-O
{[%clk 01:32:15]} {[%emt 00:00:07]} 5. a3 {[%clk 01:32:22]} {[%emt 00:00:07]}
Bxc3+ {[%clk 01:32:38]} {[%emt 00:00:08]} 6. Qxc3 {[%clk 01:32:45]} {[%emt
00:00:06]} h6 {[%clk 01:31:05]} {[%emt 00:02:04]} 7. f3 {[%clk 01:22:40]}
{[%emt 00:10:34]} d5 {[%clk 01:30:43]} {[%emt 00:00:53]} 8. cxd5 {[%clk
01:20:16]} {[%emt 00:02:54]} exd5 {[%clk 01:28:51]} {[%emt 00:02:22]} 9. Bf4
{[%clk 01:19:09]} {[%emt 00:01:36]} c6 {[%clk 01:28:16]} {[%emt 00:01:07]} 10.
e3 {[%clk 01:16:49]} {[%emt 00:02:47]} Nh5 {[%clk 01:23:49]} {[%emt 00:04:59]}
11. Be5 {[%clk 01:06:48]} {[%emt 00:10:30]} Nd7 {[%clk 01:13:50]} {[%emt
00:10:31]} 12. g4 {[%clk 01:00:03]} {[%emt 00:07:14]} Nxe5 {[%clk 01:04:03]}
{[%emt 00:10:17]} 13. dxe5 {[%clk 01:00:02]} {[%emt 00:00:31]} Qh4+ {[%clk
01:04:12]} {[%emt 00:00:22]} 14. Ke2 {[%clk 00:59:55]} {[%emt 00:00:36]} Ng3+
{[%clk 01:03:26]} {[%emt 00:01:16]} 15. hxg3 {[%clk 01:00:12]} {[%emt
00:00:12]} Qxh1 {[%clk 01:03:54]} {[%emt 00:00:04]} 16. Kf2 {[%clk 01:00:03]}
{[%emt 00:00:38]} Bxg4 {[%clk 01:02:38]} {[%emt 00:01:47]} 17. Bg2 {[%clk
00:42:12]} {[%emt 00:18:21]} Qh5 {[%clk 01:00:50]} {[%emt 00:02:18]} 18. fxg4
{[%clk 00:42:31]} {[%emt 00:00:10]} Qxg4 {[%clk 01:00:48]} {[%emt 00:00:33]} 19.
Nf3 {[%clk 00:41:01]} {[%emt 00:01:59]} f6 {[%clk 00:52:52]} {[%emt 00:08:28]}
20. Rh1 {[%clk 00:36:53]} {[%emt 00:04:38]} fxe5 {[%clk 00:49:15]} {[%emt
00:04:07]} 21. Qxe5 {[%clk 00:37:08]} {[%emt 00:00:14]} Rxf3+ {[%clk 00:45:58]}
{[%emt 00:03:48]} 22. Bxf3 {[%clk 00:37:22]} {[%emt 00:00:15]} Rf8 {[%clk
00:46:26]} {[%emt 00:00:02]} 23. Ke1 {[%clk 00:29:29]} {[%emt 00:08:23]} Rxf3
{[%clk 00:39:30]} {[%emt 00:07:27]} 24. Rg1 {[%clk 00:29:29]} {[%emt 00:00:29]}
Qc4 {[%clk 00:36:58]} {[%emt 00:03:02]} 25. Qb8+ {[%clk 00:27:49]} {[%emt
00:02:10]} Rf8 {[%clk 00:36:18]} {[%emt 00:01:11]} 0-1

[Event "Internationales Werder Bremen IM-Turnier"]
[Site "SV Werder Bremen, Clubräume in der Hemelinger Straße 17, Germany"]
[Date "2018.06.18"]
[Round "3.4"]
[White "Grabarczyk, Miroslav"]
[Black "Charmeteau, Sven"]
[Result "0-1"]
[TimeControl "90 Minuten/40 Züge + 30 Minuten/Rest + 30 Sekunden ab dem ersten Zug"]
[WhiteTitle "GM"]
[BlackTitle "FM"]
[WhiteFideId "1101684"]
[BlackFideId "638285"]
[WhiteElo "2402"]
[BlackElo "2287"]

1. d4 {[%clk 01:30:56]} {[%emt 00:00:02]} Nf6 {[%clk 01:30:51]} {[%emt
00:00:10]} 2. c4 {[%clk 01:31:13]} {[%emt 00:00:12]} g6 {[%clk 01:31:15]}
{[%emt 00:00:07]} 3. Nf3 {[%clk 01:31:28]} {[%emt 00:00:14]} Bg7 {[%clk
01:31:31]} {[%emt 00:00:15]} 4. g3 {[%clk 01:31:42]} {[%emt 00:00:16]} c6
{[%clk 01:31:47]} {[%emt 00:00:14]} 5. Bg2 {[%clk 01:30:53]} {[%emt 00:01:17]}
d5 {[%clk 01:32:11]} {[%emt 00:00:07]} 6. Qb3 {[%clk 01:31:11]} {[%emt
00:00:11]} O-O {[%clk 01:29:47]} {[%emt 00:02:55]} 7. O-O {[%clk 01:31:08]}
{[%emt 00:00:32]} Qb6 {[%clk 01:28:28]} {[%emt 00:01:50]} 8. Nc3 {[%clk
01:30:07]} {[%emt 00:01:30]} Rd8 {[%clk 01:28:15]} {[%emt 00:00:44]} 9. Rd1
{[%clk 01:27:26]} {[%emt 00:03:11]} Bf5 {[%clk 01:27:20]} {[%emt 00:01:25]} 10.
Ne1 {[%clk 01:27:02]} {[%emt 00:00:54]} dxc4 {[%clk 01:20:06]} {[%emt
00:07:46]} 11. Qxc4 {[%clk 01:27:25]} {[%emt 00:00:07]} Na6 {[%clk 01:20:18]}
{[%emt 00:00:18]} 12. e4 {[%clk 01:21:24]} {[%emt 00:06:30]} Be6 {[%clk
01:16:58]} {[%emt 00:03:50]} 13. d5 {[%clk 01:16:00]} {[%emt 00:05:54]} cxd5
{[%clk 01:17:12]} {[%emt 00:00:17]} 14. exd5 {[%clk 01:16:24]} {[%emt
00:00:06]} Bg4 {[%clk 01:17:00]} {[%emt 00:00:41]} 15. Bf3 {[%clk 01:11:44]}
{[%emt 00:05:11]} Rac8 {[%clk 01:12:41]} {[%emt 00:04:50]} 16. Qe2 {[%clk
01:11:17]} {[%emt 00:00:56]} Bxf3 {[%clk 01:12:55]} {[%emt 00:00:18]} 17. Nxf3
{[%clk 01:11:38]} {[%emt 00:00:08]} Nb4 {[%clk 01:10:27]} {[%emt 00:02:59]} 18.
Be3 {[%clk 00:58:34]} {[%emt 00:13:33]} Qa5 {[%clk 01:07:33]} {[%emt 00:03:24]}
19. d6 {[%clk 00:42:13]} {[%emt 00:16:51]} Rxd6 {[%clk 00:47:37]} {[%emt
00:20:27]} 20. Rxd6 {[%clk 00:41:18]} {[%emt 00:01:25]} exd6 {[%clk 00:48:05]}
{[%emt 00:00:02]} 21. Qb5 {[%clk 00:35:42]} {[%emt 00:06:06]} Qxb5 {[%clk
00:46:42]} {[%emt 00:01:54]} 22. Nxb5 {[%clk 00:36:05]} {[%emt 00:00:06]} Ne4
{[%clk 00:45:32]} {[%emt 00:01:40]} 23. Bxa7 {[%clk 00:35:15]} {[%emt
00:01:20]} Bxb2 {[%clk 00:37:41]} {[%emt 00:08:21]} 24. Rb1 {[%clk 00:30:58]}
{[%emt 00:04:46]} Rc1+ {[%clk 00:35:19]} {[%emt 00:02:52]} 25. Rxc1 {[%clk
00:30:58]} {[%emt 00:00:31]} Bxc1 {[%clk 00:35:47]} {[%emt 00:00:02]} 26. a4
{[%clk 00:30:09]} {[%emt 00:01:18]} Nc6 {[%clk 00:34:42]} {[%emt 00:01:34]} 27.
Bb6 {[%clk 00:26:16]} {[%emt 00:04:22]} Kf8 {[%clk 00:31:29]} {[%emt 00:03:45]}
28. Kf1 {[%clk 00:20:33]} {[%emt 00:06:12]} Ke7 {[%clk 00:31:39]} {[%emt
00:00:21]} 29. Ke2 {[%clk 00:20:50]} {[%emt 00:00:13]} Bb2 {[%clk 00:27:53]}
{[%emt 00:04:16]} 30. Kd3 {[%clk 00:17:14]} {[%emt 00:04:06]} f5 {[%clk
00:17:33]} {[%emt 00:10:50]} 31. Kc4 {[%clk 00:12:02]} {[%emt 00:05:42]} Bf6
{[%clk 00:16:31]} {[%emt 00:01:33]} 32. Be3 {[%clk 00:11:24]} {[%emt 00:01:07]}
Kd7 {[%clk 00:16:03]} {[%emt 00:00:58]} 33. h4 {[%clk 00:09:50]} {[%emt
00:02:04]} Na5+ {[%clk 00:12:36]} {[%emt 00:03:57]} 34. Kb4 {[%clk 00:10:04]}
{[%emt 00:00:14]} Nc6+ {[%clk 00:12:56]} {[%emt 00:00:12]} 35. Kc4 {[%clk
00:10:30]} {[%emt 00:00:04]} Ne7 {[%clk 00:12:34]} {[%emt 00:00:52]} 36. Kd3
{[%clk 00:05:49]} {[%emt 00:05:11]} Nd5 {[%clk 00:09:02]} {[%emt 00:04:02]} 37.
Ba7 {[%clk 00:04:20]} {[%emt 00:01:58]} Ndc3 {[%clk 00:08:23]} {[%emt
00:01:10]} 38. Nxc3 {[%clk 00:03:43]} {[%emt 00:01:08]} Nxc3 {[%clk 00:08:51]}
{[%emt 00:00:02]} 39. a5 {[%clk 00:03:06]} {[%emt 00:01:07]} Ne4 {[%clk
00:09:17]} {[%emt 00:00:03]} 40. Kc4 {[%clk 00:02:03]} {[%emt 00:01:34]} Kc6
{[%clk 00:07:37]} {[%emt 00:02:09]} 41. Nd4+ {[%clk 00:26:16]} {[%emt
00:06:17]} Bxd4 {[%clk 00:36:51]} {[%emt 00:01:16]} 42. Bxd4 {[%clk 00:26:40]}
{[%emt 00:00:06]} Nd2+ {[%clk 00:22:23]} {[%emt 00:14:58]} 43. Kb4 {[%clk
00:22:54]} {[%emt 00:04:16]} Nf3 {[%clk 00:18:40]} {[%emt 00:04:14]} 44. Ba7
{[%clk 00:21:42]} {[%emt 00:01:42]} f4 {[%clk 00:11:08]} {[%emt 00:08:02]} 45.
Bb6 {[%clk 00:17:43]} {[%emt 00:04:29]} h5 {[%clk 00:11:06]} {[%emt 00:00:31]}
46. Kc4 {[%clk 00:15:35]} {[%emt 00:02:36]} Ng1 {[%clk 00:04:24]} {[%emt
00:07:14]} 47. Kd3 {[%clk 00:11:16]} {[%emt 00:04:47]} Kd5 {[%clk 00:03:59]}
{[%emt 00:00:57]} 48. gxf4 {[%clk 00:09:03]} {[%emt 00:02:43]} Nf3 {[%clk
00:04:16]} {[%emt 00:00:13]} 49. Bd8 {[%clk 00:09:29]} {[%emt 00:00:03]} Nd4
{[%clk 00:04:22]} {[%emt 00:00:24]} 50. Bb6 {[%clk 00:09:12]} {[%emt 00:00:46]}
Nf5 {[%clk 00:04:35]} {[%emt 00:00:18]} 51. Bd8 {[%clk 00:09:36]} {[%emt
00:00:05]} Ng7 {[%clk 00:04:28]} {[%emt 00:00:38]} 52. Bf6 {[%clk 00:05:43]}
{[%emt 00:04:23]} Ne6 {[%clk 00:04:37]} {[%emt 00:00:22]} 53. Ke3 {[%clk
00:05:38]} {[%emt 00:00:36]} Kc4 {[%clk 00:04:05]} {[%emt 00:01:02]} 54. Ke4
{[%clk 00:06:04]} {[%emt 00:00:03]} d5 {[%clk 00:02:58]} {[%emt 00:01:38]} 55.
Ke5 {[%clk 00:06:29]} {[%emt 00:00:04]} d4 {[%clk 00:01:54]} {[%emt 00:01:34]}
56. f5 {[%clk 00:06:56]} {[%emt 00:00:04]} d3 {[%clk 00:02:09]} {[%emt
00:00:14]} 57. Bg5 {[%clk 00:06:01]} {[%emt 00:01:24]} Nxg5 {[%clk 00:02:11]}
{[%emt 00:00:29]} 58. fxg6 {[%clk 00:06:29]} {[%emt 00:00:03]} Ne6 {[%clk
00:02:05]} {[%emt 00:00:35]} 59. Kxe6 {[%clk 00:06:35]} {[%emt 00:00:25]} d2
{[%clk 00:02:33]} {[%emt 00:00:02]} 60. g7 {[%clk 00:06:59]} {[%emt 00:00:06]}
d1=Q {[%clk 00:02:58]} {[%emt 00:00:06]} 61. Kf7 {[%clk 00:07:14]} {[%emt
00:00:14]} Qd5+ {[%clk 00:00:48]} {[%emt 00:02:40]} 62. Kf8 {[%clk 00:07:27]}
{[%emt 00:00:16]} Qf5+ {[%clk 00:01:07]} {[%emt 00:00:12]} 63. Kg8 {[%clk
00:07:49]} {[%emt 00:00:05]} Qxa5 {[%clk 00:00:51]} {[%emt 00:00:49]} 64. Kh8
{[%clk 00:08:09]} {[%emt 00:00:09]} Qc3 {[%clk 00:00:42]} {[%emt 00:00:39]} 65.
Kh7 {[%clk 00:08:31]} {[%emt 00:00:07]} Qd3 {[%clk 00:00:57]} {[%emt 00:00:15]}
66. Kh8 {[%clk 00:08:50]} {[%emt 00:00:12]} Qd4 {[%clk 00:01:05]} {[%emt
00:00:21]} 67. Kh7 {[%clk 00:09:07]} {[%emt 00:00:13]} Qe4 {[%clk 00:00:57]}
{[%emt 00:00:39]} 68. Kh8 {[%clk 00:09:13]} {[%emt 00:00:21]} Qd4 {[%clk
00:00:41]} {[%emt 00:00:49]} 69. Kh7 {[%clk 00:09:32]} {[%emt 00:00:11]} Qd3
{[%clk 00:00:33]} {[%emt 00:00:38]} 70. Kh8 {[%clk 00:09:57]} {[%emt 00:00:04]}
Qd4 {[%clk 00:00:38]} {[%emt 00:00:26]} 71. Kh7 {[%clk 00:10:23]} {[%emt
00:00:04]} Qxg7 {[%clk 00:00:39]} {[%emt 00:00:29]} 72. Kxg7 {[%clk 00:10:49]}
{[%emt 00:00:03]} Kd5 {[%clk 00:00:48]} {[%emt 00:00:21]} 73. f4 {[%clk
00:07:10]} {[%emt 00:04:10]} Ke4 {[%clk 00:00:55]} {[%emt 00:00:22]} 74. Kg6
{[%clk 00:07:21]} {[%emt 00:00:19]} Kxf4 {[%clk 00:01:08]} {[%emt 00:00:17]} 75.
Kxh5 {[%clk 00:07:47]} {[%emt 00:00:03]} b5 {[%clk 00:01:01]} {[%emt 00:00:37]}
76. Kg6 {[%clk 00:08:13]} {[%emt 00:00:04]} b4 {[%clk 00:01:28]} {[%emt
00:00:04]} 77. h5 {[%clk 00:08:41]} {[%emt 00:00:02]} b3 {[%clk 00:01:54]}
{[%emt 00:00:04]} 78. h6 {[%clk 00:09:08]} {[%emt 00:00:03]} b2 {[%clk
00:02:21]} {[%emt 00:00:03]} 79. h7 {[%clk 00:09:34]} {[%emt 00:00:03]} b1=Q+
{[%clk 00:02:47]} {[%emt 00:00:05]} 80. Kg7 {[%clk 00:10:01]} {[%emt 00:00:03]}
Qb7+ {[%clk 00:02:50]} {[%emt 00:00:26]} 81. Kg8 {[%clk 00:10:21]} {[%emt
00:00:10]} Kf5 {[%clk 00:02:11]} {[%emt 00:01:09]} 82. h8=Q {[%clk 00:10:45]}
{[%emt 00:00:06]} Kg6 {[%clk 00:02:28]} {[%emt 00:00:13]} 0-1

[Event "Internationales Werder Bremen IM-Turnier"]
[Site "SV Werder Bremen, Clubräume in der Hemelinger Straße 17, Germany"]
[Date "2018.06.18"]
[Round "3.2"]
[White "Wachinger, Nikolas"]
[Black "Molchanov, Oleksii"]
[Result "1/2-1/2"]
[TimeControl "90 Minuten/40 Züge + 30 Minuten/Rest + 30 Sekunden ab dem ersten Zug"]
[BlackTitle "FM"]
[WhiteFideId "12962791"]
[BlackFideId "14119820"]
[WhiteElo "2292"]
[BlackElo "2350"]

1. e4 {[%clk 01:30:56]} {[%emt 00:00:03]} c6 {[%clk 01:30:32]} {[%emt
00:00:28]} 2. d4 {[%clk 01:30:55]} {[%emt 00:00:31]} d5 {[%clk 01:30:55]}
{[%emt 00:00:07]} 3. e5 {[%clk 01:31:12]} {[%emt 00:00:14]} Bf5 {[%clk
01:31:03]} {[%emt 00:00:21]} 4. Nf3 {[%clk 01:31:24]} {[%emt 00:00:19]} e6
{[%clk 01:31:20]} {[%emt 00:00:13]} 5. Be2 {[%clk 01:31:41]} {[%emt 00:00:14]}
c5 {[%clk 01:31:37]} {[%emt 00:00:13]} 6. Be3 {[%clk 01:32:01]} {[%emt
00:00:10]} Qb6 {[%clk 01:31:56]} {[%emt 00:00:10]} 7. Nc3 {[%clk 01:32:14]}
{[%emt 00:00:18]} Nc6 {[%clk 01:32:13]} {[%emt 00:00:13]} 8. O-O {[%clk
01:32:28]} {[%emt 00:00:15]} Qxb2 {[%clk 01:31:46]} {[%emt 00:00:56]} 9. Qe1
{[%clk 01:32:52]} {[%emt 00:00:07]} cxd4 {[%clk 01:31:20]} {[%emt 00:00:56]} 10.
Bxd4 {[%clk 01:33:15]} {[%emt 00:00:07]} Nxd4 {[%clk 01:31:24]} {[%emt
00:00:26]} 11. Nxd4 {[%clk 01:33:38]} {[%emt 00:00:06]} Bb4 {[%clk 01:31:28]}
{[%emt 00:00:26]} 12. Rb1 {[%clk 01:34:02]} {[%emt 00:00:06]} Bxc3 {[%clk
01:31:33]} {[%emt 00:00:25]} 13. Rxb2 {[%clk 01:34:23]} {[%emt 00:00:09]} Bxe1
{[%clk 01:31:58]} {[%emt 00:00:05]} 14. Rxe1 {[%clk 01:34:46]} {[%emt
00:00:06]} b6 {[%clk 01:32:13]} {[%emt 00:00:15]} 15. h4 {[%clk 01:30:08]}
{[%emt 00:05:08]} h5 {[%clk 01:25:43]} {[%emt 00:07:00]} 16. Nb5 {[%clk
01:17:59]} {[%emt 00:12:40]} Kf8 {[%clk 01:22:22]} {[%emt 00:03:51]} 17. Nd6
{[%clk 01:12:43]} {[%emt 00:05:46]} Ne7 {[%clk 01:20:38]} {[%emt 00:02:14]} 18.
c4 {[%clk 01:12:33]} {[%emt 00:00:41]} dxc4 {[%clk 01:14:38]} {[%emt 00:06:29]}
19. Bxc4 {[%clk 01:12:40]} {[%emt 00:00:22]} Rd8 {[%clk 01:07:45]} {[%emt
00:07:23]} 20. g3 {[%clk 01:01:43]} {[%emt 00:11:27]} g5 {[%clk 00:53:35]}
{[%emt 00:14:40]} 21. hxg5 {[%clk 00:58:02]} {[%emt 00:04:12]} h4 {[%clk
00:53:56]} {[%emt 00:00:09]} 22. Kg2 {[%clk 00:51:53]} {[%emt 00:06:38]} hxg3
{[%clk 00:52:07]} {[%emt 00:02:19]} 23. fxg3 {[%clk 00:40:59]} {[%emt
00:11:25]} Rg8 {[%clk 00:50:00]} {[%emt 00:02:36]} 24. Rf2 {[%clk 00:36:39]}
{[%emt 00:04:50]} Rxg5 {[%clk 00:49:52]} {[%emt 00:00:38]} 25. Ref1 {[%clk
00:36:09]} {[%emt 00:01:00]} Rd7 {[%clk 00:33:56]} {[%emt 00:16:26]} 26. Bb3
{[%clk 00:25:04]} {[%emt 00:11:36]} Ng6 {[%clk 00:29:36]} {[%emt 00:04:49]} 27.
Nxf5 {[%clk 00:16:15]} {[%emt 00:09:19]} exf5 {[%clk 00:29:52]} {[%emt
00:00:14]} 28. e6 {[%clk 00:12:00]} {[%emt 00:04:45]} Rd3 {[%clk 00:27:58]}
{[%emt 00:02:24]} 29. exf7 {[%clk 00:12:18]} {[%emt 00:00:12]} Rdxg3+ {[%clk
00:23:13]} {[%emt 00:05:15]} 30. Kh1 {[%clk 00:12:21]} {[%emt 00:00:27]} f4
{[%clk 00:14:17]} {[%emt 00:09:27]} 31. Rd1 {[%clk 00:10:51]} {[%emt 00:01:59]}
Kg7 {[%clk 00:14:31]} {[%emt 00:00:15]} 32. Rd8 {[%clk 00:07:55]} {[%emt
00:03:26]} Nf8 {[%clk 00:14:40]} {[%emt 00:00:21]} 33. Rd4 {[%clk 00:06:48]}
{[%emt 00:01:37]} f3 {[%clk 00:11:16]} {[%emt 00:03:55]} 34. Kh2 {[%clk
00:05:01]} {[%emt 00:02:17]} Rg2 {[%clk 00:05:13]} {[%emt 00:06:33]} 35. Rxg2
{[%clk 00:05:25]} {[%emt 00:00:06]} Rxg2 {[%clk 00:04:59]} {[%emt 00:00:45]} 36.
Kh3 {[%clk 00:03:20]} {[%emt 00:02:34]} Ng6 {[%clk 00:01:45]} {[%emt 00:03:43]}
37. Rd8 {[%clk 00:03:25]} {[%emt 00:00:25]} Nf4 {[%clk 00:01:30]} {[%emt
00:00:45]} 38. Kh4 {[%clk 00:03:54]} {[%emt 00:00:02]} Ng6 {[%clk 00:01:45]}
{[%emt 00:00:14]} 39. Kh3 {[%clk 00:04:13]} {[%emt 00:00:11]} Nf4 {[%clk
00:01:54]} {[%emt 00:00:20]} 1/2-1/2

[ePGN "0.1;DGT LiveChess/2.1"]